bitfinex-derivatives/quotes_SOLF0:USTF0_20220102
["timestamp","ask_amount","ask_price","bid_price","bid_amount"]
[1641155471557,9.33685886,175.26,175.22,12.08925532]
[1641155472758,5.307,175.26,175.22,12.08925532]
[1641155473555,5.307,175.26,175.21,19.48285316]
[1641155473556,9.33685886,175.26,175.21,19.48285316]
[1641155474158,5.307,175.26,175.22,12.08925532]
[1641155476257,9.33685886,175.26,175.22,12.08925532]
[1641155476862,4.02985886,175.25,175.21,1.2804308]
[1641155478561,9.33685886,175.26,175.22,12.08925532]
[1641155478761,4.02985886,175.26,175.22,12.08925532]
[1641155479263,4.02985886,175.25,175.21,1.2804308]
[1641155480864,4.02985886,175.25,175.21,19.48291028]
[1641155483867,4.02985886,175.25,175.24,4.04911272]
[1641155486370,4.02985886,175.26,175.21,13.36968612]
[1641155486570,4.02985886,175.26,175.21,19.48294803]
[1641155487670,4.02985886,175.26,175.25,4.04912802]
[1641155488474,2.76894046,175.27,175.24,4.04912802]
[1641155490078,2.76894046,175.27,175.25,4.04912802]
[1641155490777,2.76894046,175.28,175.25,4.04912802]
[1641155491674,2.76894046,175.28,175.21,12.08925532]
[1641155491675,2.76894046,175.28,175.23,4.04912802]
[1641155491875,9.41394046,175.28,175.23,4.04912802]
[1641155492275,2.76894046,175.27,175.24,4.04912802]
[1641155493679,2.76894046,175.27,175.23,4.04912802]
[1641155496686,14.92053646,175.27,175.23,4.04912802]
[1641155497986,19.73456882,175.28,175.2,1.2804308]
[1641155498587,14.92565334,175.27,175.23,4.05161973]
[1641155499386,14.92565334,175.27,175.2,1.28082595]
[1641155500090,27.66479,175.26,175.2,1.28082595]
[1641155500295,27.66479,175.26,175.23,4.05161763]
[1641155500992,27.66479,175.26,175.19,43.17815532]
[1641155501191,2.77079415,175.25,175.2,1.28082357]
[1641155501793,4.88,175.25,175.2,1.28082357]
[1641155501993,4.88,175.25,175.23,4.05163937]
[1641155502493,4.88,175.25,175.2,1.28082357]
[1641155502692,2.77116093,175.24,175.22,4.05195317]
[1641155503695,4.88,175.25,175.18,12.08925532]
[1641155503994,2.7711448,175.24,175.22,4.0519385]
[1641155505195,29.8294,175.26,175.18,12.08925532]
[1641155505398,2.77113418,175.25,175.18,12.08925532]
[1641155505799,29.8294,175.26,175.23,4.05182612]
[1641155505997,12.15547837,175.27,175.23,4.05182612]
[1641155506197,27.66479,175.25,175.23,4.05182612]
[1641155506999,27.66479,175.25,175.19,12.08925532]
[1641155507200,27.66479,175.25,175.22,4.05196118]
[1641155507915,2.77116975,175.24,175.18,12.08925532]
[1641155508807,57.93429,175.25,175.18,12.08925532]
[1641155509004,57.93429,175.25,175.22,4.05189594]
[1641155509205,27.66479,175.25,175.22,4.05189594]
[1641155509406,2.7710901,175.24,175.18,12.08925532]
[1641155510417,12.15566633,175.26,175.22,4.05190379]
[1641155511010,14.92665784,175.26,175.18,19.48682696]
[1641155511210,45.25895784,175.26,175.18,19.48682696]
[1641155511912,30.3323,175.26,175.22,4.05185584]
[1641155512111,2.77105387,175.25,175.22,4.05185584]
[1641155512711,42.48765914,175.26,175.19,31.4441]
[1641155513611,30.3323,175.26,175.19,31.4441]
[1641155513813,14.92693211,175.25,175.21,4.05193162]
[1641155514315,3.0,175.24,175.21,4.05193162]
[1641155514512,6.838,175.26,175.17,39.75404532]
[1641155514711,6.838,175.26,175.22,4.05182155]
[1641155514712,18.99346465,175.26,175.22,4.05182155]
[1641155515712,18.99346465,175.26,175.18,43.02375532]
[1641155515911,12.15546465,175.24,175.2,4.05224183]
[1641155516913,14.92694311,175.25,175.21,4.05214398]
[1641155517513,14.92694311,175.25,175.19,1.28077398]
[1641155518417,19.89094311,175.25,175.19,1.28077398]
[1641155518615,17.11946465,175.25,175.2,4.0522467]
[1641155518816,12.15546465,175.24,175.2,4.0522467]
[1641155519417,4.964,175.25,175.18,30.9345]
[1641155519618,2.77147846,175.24,175.21,4.05215122]
[1641155520218,48.43575365,175.25,175.18,30.9345]
[1641155520418,36.2793,175.25,175.18,30.9345]
[1641155521220,14.92793824,175.24,175.2,4.03558706]
[1641155521624,3.0,175.21,175.2,4.03558706]
[1641155521823,3.0,175.21,175.19,1.28076281]
[1641155521824,7.443,175.21,175.16,12.08925532]
[1641155522124,35.10779,175.21,175.16,12.08925532]
[1641155522821,2.7720877,175.2,175.18,4.05279568]
[1641155524123,30.66479,175.21,175.15,29.3615]
[1641155524824,2.77209574,175.2,175.17,4.052803]
[1641155525623,30.66479,175.21,175.15,29.3615]
[1641155526027,27.66479,175.21,175.15,29.3615]
[1641155526226,27.66479,175.21,175.15,36.1385]
[1641155526625,27.66479,175.21,175.17,4.05281601]
[1641155526826,2.77211006,175.2,175.17,4.05281601]
[1641155527426,27.66479,175.21,175.18,4.05276569]
[1641155528427,27.66479,175.21,175.14,12.08925532]
[1641155528630,2.7722187,175.2,175.17,4.05291478]
[1641155529229,39.82353433,175.21,175.13,12.08925532]
[1641155530030,69.62403433,175.21,175.13,12.08925532]
[1641155530330,69.62403433,175.21,175.16,4.05300831]
[1641155530534,14.93106592,175.2,175.16,4.05300831]
[1641155531132,57.46529,175.21,175.12,19.48708267]
[1641155531537,3.0,175.15,175.12,19.48708267]
[1641155531733,5.803,175.15,175.12,19.48708267]
[1641155531934,5.803,175.15,175.12,13.36995187]
[1641155532135,5.803,175.15,175.12,1.28069655]
[1641155532333,27.66479,175.14,175.12,1.28069655]
[1641155533533,27.66479,175.14,175.11,12.08925532]
[1641155533738,3.0,175.12,175.09,1.28059429]
[1641155533936,5.77271102,175.13,175.09,1.28059429]
[1641155534335,3.0,175.13,175.09,1.28059429]
[1641155534536,2.77420439,175.12,175.06,1.28059429]
[1641155534735,5.77420439,175.12,175.06,1.28059429]
[1641155535335,2.77411692,175.11,175.05,41.32625532]
[1641155535537,2.77411692,175.11,175.05,12.08925532]
[1641155536035,56.76259,175.14,175.05,12.08925532]
[1641155536239,12.16428243,175.12,175.04,12.08925532]
[1641155537239,4.05486067,175.08,175.04,12.08925532]
[1641155537940,4.346,175.08,175.04,12.08925532]
[1641155538140,3.0,175.07,175.04,12.08925532]
[1641155538339,27.66479,175.05,175.04,12.08925532]
[1641155539139,31.72025192,175.05,175.01,12.08925532]
[1641155539938,27.66479,175.05,175.01,12.08925532]
[1641155540138,27.66479,175.05,175.02,12.08925532]
[1641155543648,27.66479,175.05,175.03,12.08925532]
[1641155543852,21.17625698,175.05,175.03,12.08925532]
[1641155544249,21.17625698,175.05,175.02,12.08925532]
[1641155547354,4.05542275,175.06,175.02,12.08925532]
[1641155547654,3.0,175.11,175.02,5.373]
[1641155548253,30.66479,175.11,175.02,5.373]
[1641155548453,30.66479,175.11,175.03,31.7035]
[1641155549553,30.66479,175.11,175.03,38.0345]
[1641155549955,2.77507138,175.1,175.08,3.99308127]
[1641155550955,2.77507138,175.1,175.09,3.99308127]
[1641155551458,2.77507138,175.1,175.08,3.99308127]
[1641155553561,2.77507138,175.1,175.09,3.99308127]
[1641155555762,27.66479,175.11,175.06,12.08925532]
[1641155556460,27.66479,175.11,175.1,4.05484323]
[1641155557061,30.4395267,175.11,175.1,4.05484323]
[1641155561061,33.4395267,175.11,175.1,4.05484323]
[1641155561660,30.4395267,175.11,175.1,4.05484323]
[1641155562064,45.60552612,175.11,175.07,4.05484323]
[1641155562663,2.7747367,175.1,175.07,4.05484323]
[1641155565172,2.7747367,175.1,175.08,4.05484323]
[1641155566072,2.7747367,175.1,175.06,4.05484323]
[1641155566673,4.04821087,175.08,175.06,4.05484323]
[1641155568276,4.04821087,175.09,175.06,4.05484323]
[1641155569079,4.04821087,175.08,175.06,4.05484323]
[1641155569680,4.04821087,175.09,175.07,4.05484323]
[1641155570384,4.04821087,175.09,175.06,4.05484323]
[1641155571184,3.0,175.08,175.06,4.05484323]
[1641155571585,11.26621087,175.09,175.07,4.05484323]
[1641155571786,27.66479,175.08,175.07,4.05484323]
[1641155572986,31.71300087,175.08,175.06,4.05484323]
[1641155573988,4.04821087,175.07,175.04,5.3349113]
[1641155574689,4.04821087,175.07,175.05,4.05484323]
[1641155576894,4.04821087,175.07,175.04,5.3349113]
[1641155577695,45.60154729,175.09,175.06,4.05484323]
[1641155578695,2.77075787,175.08,175.06,4.05484323]
[1641155579292,5.77075787,175.08,175.06,4.05484323]
[1641155579492,5.77075787,175.08,175.05,4.05484323]
[1641155579894,27.66479,175.07,175.05,4.05484323]
[1641155580494,30.43554787,175.07,175.05,4.05484323]
[1641155581195,2.77075787,175.06,175.05,4.05484323]
[1641155588498,27.66479,175.07,175.03,1.28006807]
[1641155589001,5.77075787,175.09,175.03,1.28006807]
[1641155589401,15.16599942,175.09,175.05,4.05571945]
[1641155589900,2.76994639,175.08,175.03,4.05571945]
[1641155590400,27.66479,175.07,175.03,4.05571945]
[1641155591802,3.0,175.09,175.03,4.05571945]
[1641155592001,3.0,175.08,175.03,4.05571945]
[1641155592302,3.0,175.09,175.03,4.05571945]
[1641155592502,27.66479,175.08,175.03,4.05571945]
[1641155592702,2.76995896,175.07,175.03,4.05571945]
[1641155593403,4.04717574,175.06,175.03,4.05571945]
[1641155595207,7.574e-05,175.06,175.03,4.05571945]
[1641155595406,12.16599942,175.1,174.99,19.48649655]
[1641155595607,15.16599942,175.11,175.0,12.08925532]
[1641155596306,12.16599942,175.11,175.0,12.08925532]
[1641155596511,14.94103479,175.1,175.02,12.08925532]
[1641155596713,14.94103479,175.1,175.03,31.6742]
[1641155596911,14.94103479,175.1,175.03,36.9292]
[1641155597514,2.77503537,175.1,175.04,1.28006807]
[1641155598112,12.16599942,175.1,175.04,1.28006807]
[1641155598919,14.94103479,175.1,175.04,1.28006807]
[1641155599615,2.77503537,175.1,175.04,1.28006807]
[1641155604624,27.66479,175.11,175.04,1.28006807]
[1641155605424,2.77503936,175.1,175.04,1.28006807]
[1641155606022,27.66479,175.11,175.04,1.28006807]
[1641155606627,2.77500949,175.1,175.04,1.28006807]
[1641155607328,39.8307294,175.11,175.03,43.76345532]
[1641155607528,12.1659394,175.11,175.03,48.82245532]
[1641155608128,12.1659394,175.11,175.04,1.28030281]
[1641155609028,12.1659394,175.11,175.03,48.82245532]
[1641155609229,39.8307294,175.11,175.03,48.82245532]
[1641155609628,12.1659394,175.11,175.03,48.82245532]
[1641155609831,2.77501868,175.1,175.04,1.28031826]
[1641155611431,27.66479,175.11,175.04,1.28031826]
[1641155612030,2.76832468,175.1,175.04,1.28031826]
[1641155612832,12.13691104,175.13,175.04,1.28031826]
[1641155613331,27.66479,175.12,175.04,1.28031826]
[1641155614031,2.76824275,175.13,175.04,1.28031826]
[1641155614032,2.76824275,175.13,175.05,3.0]
[1641155614333,2.76824275,175.11,175.05,9.691]
[1641155615137,12.13691104,175.13,175.05,9.691]
[1641155615334,27.66479,175.16,175.06,13.36957358]
[1641155615533,27.66479,175.16,175.07,31.6474]
[1641155616633,2.76747735,175.15,175.08,1.28031826]
[1641155617033,2.76747735,175.15,175.09,3.0]
[1641155617233,12.13691104,175.17,175.09,35.61779]
[1641155618135,2.76692465,175.18,175.1,1.28031826]
[1641155619037,33.00862465,175.18,175.1,1.28031826]
[1641155619236,45.14553569,175.18,175.1,1.28031826]
[1641155620040,45.14553569,175.18,175.07,46.73665532]
[1641155620238,14.90383569,175.17,175.09,12.08925532]
[1641155622342,20.53883569,175.17,175.09,12.08925532]
[1641155622743,12.13691104,175.15,175.08,1.28042874]
[1641155623344,18.50176549,175.17,175.08,1.28042874]
[1641155623544,14.92943658,175.16,175.08,19.48691221]
[1641155623744,14.92943658,175.16,175.1,3.0]
[1641155624847,2.76692465,175.16,175.11,1.28042874]
[1641155625446,17.79751193,175.17,175.1,12.08925532]
[1641155626143,2.77328787,175.16,175.1,12.08925532]
[1641155626344,2.77328787,175.16,175.09,19.48694363]
[1641155626745,5.635,175.17,175.09,16.36971548]
[1641155626946,12.16261639,175.15,175.09,4.28046016]
[1641155627147,12.16261639,175.15,175.09,1.28046016]
[1641155627345,18.13561639,175.15,175.09,1.28046016]
[1641155627846,5.973,175.15,175.1,1.28041529]
[1641155628646,5.973,175.15,175.08,27.66479]
[1641155628647,2.77378144,175.14,175.09,1.28041624]
[1641155629347,5.973,175.15,175.07,46.73665532]
[1641155629549,12.16255629,175.16,175.08,12.08925532]
[1641155629848,12.16255629,175.16,175.08,39.75404532]
[1641155630349,60.08956897,175.2,175.08,39.75404532]
[1641155630548,41.99109564,175.19,175.09,1.28041601]
[1641155631050,2.77377345,175.18,175.09,1.28041601]
[1641155631249,12.16258186,175.16,175.09,1.28041601]
[1641155631650,12.87329564,175.18,175.09,1.28041601]
[1641155633052,12.16258641,175.16,175.09,1.28041601]
[1641155633452,12.16258641,175.16,175.1,3.0]
[1641155634052,12.87329564,175.18,175.1,3.0]
[1641155634252,12.16208327,175.17,175.1,3.0]
[1641155634755,12.16208327,175.17,175.09,22.48684233]
[1641155634952,12.87329564,175.18,175.09,22.48684233]
[1641155634953,14.93517832,175.18,175.11,1.28041601]
[1641155635754,29.1178,175.19,175.11,1.28041601]
[1641155635955,29.1178,175.19,175.11,31.8651]
[1641155636755,29.1178,175.19,175.11,25.37868685]
[1641155637155,2.75542262,175.18,175.11,25.37868685]
[1641155637756,29.1178,175.19,175.11,25.37868685]
[1641155638459,56.78259,175.19,175.11,25.37868685]
[1641155640058,2.75520683,175.18,175.11,25.37868685]
[1641155641563,12.0820506,175.17,175.12,1.28043999]
[1641155642161,14.83725743,175.17,175.12,1.28043999]
[1641155642761,2.75520683,175.17,175.12,1.28043999]
[1641155643463,14.83725743,175.17,175.12,1.28043999]
[1641155644663,2.75520683,175.17,175.12,1.28043999]
[1641155645565,14.83725743,175.17,175.12,1.28043999]
[1641155646670,2.75520683,175.18,175.12,1.28043999]
[1641155650071,2.75520683,175.18,175.12,4.28043999]
[1641155650272,2.75520683,175.18,175.13,3.0]
[1641155650871,2.75520683,175.18,175.12,4.28043999]
[1641155651277,14.83725743,175.18,175.14,1.28043999]
[1641155651875,14.83725743,175.18,175.13,1.28043999]
[1641155652075,2.75520683,175.18,175.13,1.28043999]
[1641155652875,14.83725743,175.18,175.12,1.28043999]
[1641155653576,12.0820506,175.17,175.11,1.28043999]
[1641155655981,12.0820506,175.17,175.13,4.05401661]
[1641155658581,12.0820506,175.16,175.12,4.05401661]
[1641155659182,12.0820506,175.17,175.13,4.05401661]
[1641155659882,12.0820506,175.16,175.12,4.05401661]
[1641155662185,12.0820506,175.17,175.13,4.05401661]
[1641155671195,12.0820506,175.17,175.14,4.05401661]
[1641155671796,12.0820506,175.17,175.13,4.05401661]
[1641155672597,18.0880506,175.17,175.13,4.05401661]
[1641155673200,2.75520683,175.16,175.13,4.05401661]
[1641155674500,12.0820506,175.17,175.13,4.05401661]
[1641155675401,12.0820506,175.17,175.12,4.05401661]
[1641155675603,12.0820506,175.16,175.12,4.05401661]
[1641155676402,14.83725743,175.18,175.14,4.05401661]
[1641155677006,12.0820506,175.17,175.13,4.05401661]
[1641155678007,17.7760506,175.17,175.13,4.05401661]
[1641155678608,14.83725743,175.16,175.12,4.05401661]
[1641155678809,27.66479,175.13,175.12,4.05401661]
[1641155679010,4.373,175.13,175.12,4.05401661]
[1641155679609,7.12820683,175.13,175.11,4.05401661]
[1641155680911,2.75520683,175.12,175.11,4.05401661]
[1641155682014,12.0820506,175.15,175.08,1.28043999]
[1641155682817,39.7468406,175.16,175.12,4.05435046]
[1641155683715,2.75520683,175.15,175.12,4.05435046]
[1641155685818,12.0820506,175.14,175.1,4.05435046]
[1641155689225,14.83725743,175.15,175.11,4.05435046]
[1641155691127,14.83725743,175.15,175.1,4.05435046]
[1641155691326,12.0820506,175.14,175.1,4.05435046]
[1641155692629,2.75520683,175.15,175.08,4.05435046]
[1641155692828,34.76880683,175.15,175.08,4.05435046]
[1641155693734,2.75520683,175.14,175.08,4.05435046]
[1641155697239,2.75520683,175.14,175.05,1.28043999]
[1641155697938,12.0820506,175.14,175.1,4.05454928]
[1641155699043,32.0136,175.15,175.08,37.1928]
[1641155699342,2.77374635,175.14,175.11,4.05453338]
[1641155699743,12.16360013,175.14,175.1,4.05461488]
[1641155700641,2.77383504,175.14,175.09,1.28077896]
[1641155701441,32.0136,175.15,175.1,4.05458143]
[1641155701641,12.1637443,175.14,175.1,4.05458143]
[1641155702142,2.77377467,175.14,175.11,4.05455912]
[1641155702743,44.17727735,175.15,175.08,37.1928]
[1641155703745,2.77387281,175.14,175.1,4.05464833]
[1641155703945,14.93755016,175.14,175.1,4.05464833]
[1641155704645,32.0136,175.15,175.08,30.3078]
[1641155704848,4.05465096,175.11,175.08,30.3078]
[1641155705044,4.05465096,175.11,175.07,12.08925532]
[1641155705544,2.77378559,175.14,175.09,1.28078346]
[1641155706245,12.16395287,175.15,175.09,1.28078346]
[1641155706447,32.42477897,175.19,175.14,8.70157934]
[1641155706649,46.44669814,175.24,175.18,3.0]
[1641155706851,45.54669814,175.24,175.22,3.0]
[1641155707049,27.66479,175.34,175.23,27.66479]
[1641155707648,27.66479,175.34,175.23,30.66479]
[1641155708051,27.66479,175.34,175.23,27.66479]
[1641155708351,27.66479,175.34,175.23,30.66479]
[1641155708550,10.08143167,175.33,175.23,21.18283454]
[1641155709458,10.08143167,175.33,175.23,24.18283454]
[1641155709651,10.08143167,175.33,175.23,21.18283454]
[1641155709852,10.08143167,175.33,175.23,27.30092842]
[1641155710354,10.08143167,175.33,175.25,3.0]
[1641155710553,10.08143167,175.33,175.23,30.30092842]
[1641155711255,10.08143167,175.33,175.23,27.30092842]
[1641155711654,10.08143167,175.33,175.24,6.11809388]
[1641155712254,10.08143167,175.33,175.23,21.18283454]
[1641155712559,10.08143167,175.33,175.24,3.0]
[1641155712957,27.66479,175.34,175.24,3.0]
[1641155713557,27.66479,175.34,175.24,10.30893492]
[1641155714056,27.66479,175.34,175.24,3.0]
[1641155714256,27.66479,175.34,175.23,21.18283454]
[1641155717059,27.66479,175.34,175.25,3.0]
[1641155717259,27.66479,175.34,175.23,21.18283454]
[1641155717758,30.66479,175.34,175.23,21.18283454]
[1641155717957,27.66479,175.34,175.23,21.18283454]
[1641155719260,32.94579,175.34,175.23,21.18283454]
[1641155719659,32.94579,175.34,175.23,24.18283454]
[1641155721261,32.94579,175.34,175.23,21.18283454]
[1641155721461,3.0,175.32,175.23,21.18283454]
[1641155721861,3.0,175.32,175.2,3.98144187]
[1641155722661,3.0,175.32,175.29,3.98144187]
[1641155723062,27.66479,175.3,175.29,3.98144187]
[1641155723264,31.91579,175.3,175.29,3.98144187]
[1641155723564,31.91579,175.3,175.2,7.30910395]
[1641155724264,31.91579,175.3,175.2,18.57047652]
[1641155726965,31.91579,175.3,175.23,32.40873766]
[1641155727767,31.91579,175.3,175.22,32.40873766]
[1641155728467,31.91579,175.3,175.24,32.40873766]
[1641155729068,31.91579,175.3,175.23,32.40873766]
[1641155732872,31.91579,175.3,175.24,32.40873766]
[1641155733575,4.251,175.3,175.24,32.40873766]
[1641155733874,31.153,175.33,175.24,32.40873766]
[1641155734873,31.153,175.33,175.25,32.40873766]
[1641155736673,31.153,175.33,175.28,12.15318854]
[1641155736873,27.66479,175.34,175.28,12.15318854]
[1641155738275,4.05104668,175.32,175.29,12.15318854]
[1641155739078,4.05104668,175.32,175.28,12.15318854]
[1641155742682,27.66479,175.34,175.31,4.05114931]
[1641155744080,27.66479,175.34,175.3,12.15318854]
[1641155745883,27.66479,175.34,175.33,4.0507116]
[1641155746085,30.66479,175.34,175.33,4.0507116]
[1641155746285,30.66479,175.34,175.3,12.15318854]
[1641155746484,35.77679,175.34,175.3,12.15318854]
[1641155746791,38.09964138,175.34,175.28,12.15318854]
[1641155747184,3.0,175.33,175.28,12.15318854]
[1641155747484,14.47603992,175.33,175.25,12.15318854]
[1641155747986,27.66479,175.3,175.25,12.15318854]
[1641155748487,27.66479,175.3,175.26,12.15318854]
[1641155752997,27.66479,175.3,175.25,12.15318854]
[1641155753696,27.66479,175.3,175.26,12.15318854]
[1641155755698,31.5253,175.32,175.26,12.15318854]
[1641155756302,27.66479,175.31,175.26,12.15318854]
[1641155756701,30.0241289,175.31,175.26,12.15318854]
[1641155757300,2.3593389,175.3,175.25,13.84482011]
[1641155758005,2.3593389,175.3,175.26,12.15318854]
[1641155758604,30.0241289,175.31,175.26,12.15318854]
[1641155759305,2.3593389,175.3,175.25,13.84482011]
[1641155761312,2.3593389,175.31,175.25,13.84482011]
[1641155764913,2.3593389,175.31,175.26,12.15318854]
[1641155769219,59.19009,175.32,175.26,12.15318854]
[1641155770221,2.3587813,175.31,175.26,12.15318854]
[1641155770420,8.0747813,175.31,175.26,12.15318854]
[1641155771021,8.716,175.31,175.26,12.15318854]
[1641155771221,27.66479,175.29,175.26,12.15318854]
[1641155772123,27.66479,175.29,175.25,1.69163157]
[1641155772323,21.18228691,175.29,175.25,1.69163157]
[1641155773226,2.4175981,175.28,175.25,1.69163157]
[1641155774027,2.4175981,175.28,175.24,1.69163157]
[1641155774628,21.18228691,175.29,175.24,1.69163157]
[1641155778035,21.18228691,175.29,175.23,1.69163157]
[1641155780237,5.716,175.31,175.23,1.69163157]
[1641155780438,46.67672001,175.32,175.23,1.69163157]
[1641155780838,2.41431057,175.3,175.23,1.69163157]
[1641155781239,27.66479,175.29,175.23,1.69163157]
[1641155782444,2.41431057,175.28,175.23,1.69163157]
[1641155783145,27.66479,175.29,175.23,1.69163157]
[1641155786448,5.63,175.31,175.23,1.69163157]
[1641155786647,46.67672001,175.32,175.23,1.69163157]
[1641155787249,27.66479,175.29,175.23,1.69163157]
[1641155787449,33.06979,175.29,175.23,1.69163157]
[1641155788355,2.41442745,175.28,175.23,1.69163157]
[1641155793461,27.66479,175.27,175.23,1.69163157]
[1641155802570,6.469,175.3,175.23,1.69163157]
[1641155803469,12.15142001,175.31,175.23,1.69163157]
[1641155803669,2.41489964,175.29,175.23,1.69163157]
[1641155804070,30.07968964,175.29,175.23,1.69163157]
[1641155804269,27.66479,175.29,175.23,1.69163157]
[1641155804769,14.56631965,175.31,175.23,1.69163157]
[1641155804970,2.41489964,175.28,175.23,1.69163157]
[1641155805972,12.15142001,175.3,175.23,1.69163157]
[1641155806173,27.66479,175.29,175.23,1.69163157]
[1641155806472,27.66479,175.29,175.28,4.05142097]
[1641155807272,30.08289153,175.29,175.27,4.05142097]
[1641155808275,2.41810153,175.28,175.27,4.05142097]
[1641155809073,27.66479,175.29,175.24,12.15318854]
[1641155809774,27.66479,175.29,175.28,4.05127243]
[1641155810776,30.08270818,175.29,175.28,4.05127243]
[1641155811874,2.41791818,175.29,175.28,4.05127243]
[1641155812780,71.34151001,175.32,175.28,4.05127243]
[1641155812781,2.41791818,175.31,175.28,4.05127243]
[1641155813781,2.41791818,175.31,175.3,4.05127243]
[1641155815886,27.66479,175.32,175.27,12.15318854]
[1641155816085,27.66479,175.34,175.27,12.15318854]
[1641155816486,27.66479,175.34,175.31,4.05048989]
[1641155817286,2.41703563,175.33,175.32,4.05048989]
[1641155818092,27.66479,175.34,175.32,4.05048989]
[1641155818292,27.66479,175.37,175.32,6.509]
[1641155820195,27.66479,175.37,175.3,4.05048989]
[1641155820400,27.66479,175.37,175.31,4.05048989]
[1641155823201,31.69145378,175.39,175.31,7.05048989]
[1641155823406,4.02666378,175.39,175.31,7.05048989]
[1641155823604,33.52286378,175.4,175.32,4.05048989]
[1641155824403,6.693,175.41,175.34,4.05048989]
[1641155825703,4.02666378,175.38,175.37,4.05048989]
[1641155825903,10.60066378,175.38,175.37,4.05048989]
[1641155826403,10.60066378,175.38,175.34,39.81797854]
[1641155827106,10.60066378,175.38,175.35,1.62421208]
[1641155829203,10.60066378,175.38,175.34,12.15318854]
[1641155831003,10.60066378,175.38,175.32,8.67971556]
[1641155831004,4.02666378,175.37,175.36,4.04918848]
[1641155832005,2.4158301,175.37,175.36,4.04918848]
[1641155832605,6.574,175.38,175.32,20.8329041]
[1641155832805,4.04925126,175.37,175.33,12.15318854]
[1641155833007,10.80525126,175.37,175.33,12.15318854]
[1641155833507,6.756,175.37,175.33,12.15318854]
[1641155834308,2.4162881,175.36,175.35,4.04978655]
[1641155834508,30.0810781,175.36,175.35,4.04978655]
[1641155835009,2.4162881,175.36,175.35,4.04978655]
[1641155835409,6.756,175.37,175.35,4.04978655]
[1641155835609,6.756,175.37,175.34,4.04978655]
[1641155836208,6.756,175.37,175.33,20.83330343]
[1641155837612,6.756,175.37,175.36,4.04936814]
[1641155838109,6.756,175.37,175.33,13.77740062]
[1641155838309,46.89572464,175.41,175.33,20.83303618]
[1641155839011,2.41569562,175.4,175.37,4.04924793]
[1641155839611,45.17452895,175.41,175.37,4.04924793]
[1641155840111,17.50973895,175.41,175.37,4.04924793]
[1641155840514,2.41569957,175.4,175.37,4.04924793]
[1641155841014,17.50973895,175.41,175.37,4.04924793]
[1641155841514,45.17452895,175.41,175.37,4.04924793]
[1641155841715,2.41572367,175.4,175.36,4.04924793]
[1641155842515,45.17452895,175.41,175.36,4.04924793]
[1641155842815,45.17452895,175.41,175.37,4.04924793]
[1641155843616,2.41573865,175.4,175.36,4.04924793]
[1641155844117,45.17452895,175.41,175.36,4.04924793]
[1641155844319,12.14773895,175.4,175.36,4.04924793]
[1641155845517,33.02679,175.41,175.36,4.04924793]
[1641155845719,2.41575648,175.4,175.36,4.04924793]
[1641155846219,12.14790977,175.4,175.36,4.04924793]
[1641155846920,2.41577929,175.4,175.36,4.04924793]
[1641155847619,12.14799869,175.4,175.36,4.04924793]
[1641155849219,2.41579337,175.4,175.36,4.04924793]
[1641155849819,12.14796151,175.4,175.36,4.04924793]
[1641155850522,3.0,175.39,175.36,4.04924793]
[1641155850821,8.448,175.39,175.36,4.04924793]
[1641155851422,5.448,175.39,175.36,4.04924793]
[1641155851621,42.2301865,175.38,175.34,4.04924793]
[1641155853124,27.66479,175.38,175.34,4.04924793]
[1641155853323,2.41626632,175.37,175.34,4.04924793]
[1641155854323,5.448,175.39,175.34,4.04924793]
[1641155854625,12.14957986,175.38,175.34,4.04924793]
[1641155855525,14.56594458,175.38,175.34,4.04924793]
[1641155857429,42.23073458,175.38,175.34,4.04924793]
[1641155858928,2.41636472,175.37,175.34,4.04924793]
[1641155859931,27.66479,175.38,175.34,4.04924793]
[1641155860730,29.3388,175.4,175.34,4.04924793]
[1641155861128,2.41624524,175.37,175.34,4.04924793]
[1641155861729,11.55926204,175.39,175.34,4.04924793]
[1641155862732,2.41621351,175.39,175.34,4.04924793]
[1641155862931,2.41621351,175.39,175.36,4.04924793]
[1641155864031,12.14840452,175.39,175.35,4.04924793]
[1641155864733,57.00359,175.4,175.35,4.04924793]
[1641155864935,2.41600974,175.39,175.35,4.04924793]
[1641155865933,12.14865155,175.39,175.35,4.04924793]
[1641155867235,2.41604048,175.39,175.35,4.04924793]
[1641155868040,12.14865369,175.39,175.35,4.04924793]
[1641155868939,2.4160378,175.39,175.35,4.04924793]
[1641155869439,12.14870872,175.39,175.35,4.04924793]
[1641155869640,16.79870872,175.39,175.35,4.04924793]
[1641155870240,2.41605395,175.38,175.35,4.04924793]
[1641155871140,16.79841682,175.39,175.35,4.04924793]
[1641155871742,2.41588874,175.38,175.35,4.04924793]
[1641155872542,12.14878968,175.38,175.34,4.04924793]
[1641155873444,4.65,175.39,175.34,4.04924793]